Cogmind - Beta 13 @@@ ROGUE MODE // 2024.04.01 @ 10:07:21 Player: The Erv Meister Result: Destroyed by Y-45 Defender with Beam Rifle Performance ------------- Evolutions (2) 1000 Regions Visited (4) 800 Robots Destroyed (25) 125 Value Destroyed (715) 715 Prototype IDs (0) 0 Alien Tech Used (0) 0 Bonus (0) 0 TOTAL SCORE: 2640 Bonus ------- None Cogmind --------- Core Integrity 0/550 Matter 40/300 Energy 160/160 System Corruption 0% Temperature Cool (16) Movement Treading (170) Location -8/Materials Parts ------- > --- POWER (2) -------- Light Nuclear Core > --- PROPULSION (4) --- Armored Treads > --- UTILITY (3) ------ Melee Analysis Suite Improved Power Shielding > --- WEAPON (2) ------- Autogun Autogun > --- INVENTORY (5) ---- Katana Peak State ------------ > --- POWER ------------ Light Nuclear Core Light Nuclear Core > --- PROPULSION ------- VTOL Module VTOL Module Surge Thruster > --- UTILITY ---------- Seismic Detector Melee Analysis Suite Improved Weapon Shielding > --- WEAPON ----------- Mini Grenade Launcher Katana > --- INVENTORY -------- Deuterium Engine Grenade Launcher [Rating: 25] Favorites ----------- Power Light Ion Engine Engine Light Ion Engine Power Core Light Nuclear Core Propulsion Wheel Treads Armored Treads Wheel Wheel Flight Unit VTOL Module Utility High-capacity Battery Device Disposable Heat Sink Storage High-capacity Battery Processor Melee Analysis Suite Protection Improved Weapon Shielding Weapon Grenade Launcher Energy Gun Medium Laser Ballistic Gun Autogun Launcher Grenade Launcher Slashing Weapon Katana Build | -11 -10 -10 -9 -8 ------- Run | Yrd Mat Min Mat Mat Slots Evolved 4 | . . . 2 2 Power 1 | . . . . 1 Propulsion 2 | . . . 2 . Utility 1 | . . . . 1 Weapon . | . . . . . Parts Attached 37 | 5 1 . 8 23 Power 8 | 1 . . . 7 Engine 3 | 1 . . . 2 Core 5 | . . . . 5 Reactor . | . . . . . Propulsion 11 | 2 . . 5 4 Treads 1 | . . . . 1 Leg . | . . . . . Wheel 4 | 2 . . 2 . Hover . | . . . . . Flight 6 | . . . 3 3 Utility 6 | . . . 2 4 Device 2 | . . . 1 1 Storage 1 | . . . 1 . Processor 1 | . . . . 1 Hackware . | . . . . . Protection 2 | . . . . 2 Artifact . | . . . . . Weapon 12 | 2 1 . 1 8 Energy Gun 3 | 2 . . 1 . Energy Cannon . | . . . . . Ballistic Gun 2 | . . . . 2 Ballistic Cannon . | . . . . . Launcher 5 | . 1 . . 4 Special Weapon . | . . . . . Impact Weapon . | . . . . . Slashing Weapon 2 | . . . . 2 Piercing Weapon . | . . . . . Special Melee Weapon . | . . . . . Unidentified Prototypes . | . . . . . Parts Lost 10 | . . . 3 7 Power 1 | . . . . 1 Propulsion 4 | . . . 1 3 Utility 2 | . . . . 2 Weapon 3 | . . . 2 1 Highest Loss Streak 4 | . . . 3 4 To Critical Strikes . | . . . . . Average Slot Usage (%) 77 | . 71 71 96 73 Engine 9 | . 14 14 11 4 Core 3 | . . . . 8 Wheel 19 | . 28 28 36 2 Flight 9 | . . . 6 18 Device 5 | . . . 9 7 Storage 3 | . . . 11 2 Processor 2 | . . . . 5 Protection 2 | . . . . 5 Energy Gun 7 | . 14 14 10 . Launcher 11 | . 13 14 10 10 Slashing Weapon 2 | . . . . 6 Naked Turns . | . . . . . Heaviest Build 20 | 7 8 8 14 20 Greatest Support 40 | 20 20 20 40 20 Greatest Overweight (x) 2 | . . . 1 2 Average Overweight (x) . | . . . . . Largest Inventory Capacity 5 | 5 5 5 5 5 Average Capacity 5 | 5 5 5 5 5 Most Carried 5 | 3 5 5 5 5 Average Carried 2 | . 1 5 2 1 Final Capacity 5 | 5 5 5 5 5 Final Carried 5 | . 5 5 2 1 Class Distribution -------------------- 97% | Mutant Dominant Class ---------------- Mutant | -10/Materials Mutant | -10/Mines Mutant | -9/Materials Mutant | -8/Materials Resources | -11 -10 -10 -9 -8 ----------- Run | Yrd Mat Min Mat Mat Matter Collected 568 | 250 16 . . 302 Remotely . | . . . . . Salvage Created 507 | 45 41 . . 421 Parts 39 | 2 9 . . 28 Haulers Intercepted 1 | . . . . 1 Recyclers Shooed 3 | . 2 . . 1 Parts Field Recycled . | . . . . . Retrieved Matter . | . . . . . Parts Self-Destructed . | . . . . . Prevented . | . . . . . Kills | -11 -10 -10 -9 -8 ------- Run | Yrd Mat Min Mat Mat Combat Hostiles Destroyed 15 | 1 3 . . 11 Melee 3 | . . . . 3 Guns 3 | 1 1 . . 1 AOE 9 | . 2 . . 7 Classes Destroyed 7 | 1 2 . . 4 Worker 4 | . . . . 4 Hauler 1 | . . . . 1 Watcher 5 | . 1 . . 4 Swarmer 3 | . 3 . . . Grunt 7 | 1 . . . 6 Duelist 1 | . . . . 1 Sentry 4 | . . . . 4 Best Kill Streak 10 | 1 3 . . 10 Combat Bots Only 6 | 1 3 . . 6 Max Kills in Single Turn 3 | 1 2 . . 3 Gunslinging . | . . . . . Exploded 2 | . 2 . . 2 Melee 1 | . . . . 1 Uniques/NPCs Destroyed . | . . . . . Combat | -11 -10 -10 -9 -8 -------- Run | Yrd Mat Min Mat Mat Hostile Shots Fired 104 | 3 3 . 22 76 Missed 35 | 1 2 . 4 28 Damage Taken 1230 | 23 16 . 241 950 Core 618 | . 9 . 51 558 Absorbed by Shields . | . . . . . Redirected to Shielding 101 | . . . . 101 Core Remaining (%) 94 | 100 . 96 87 . Volleys Fired 42 | 3 4 2 2 31 Largest 2 | 2 2 1 1 2 Hottest 90 | 90 80 50 50 46 Shots Fired 48 | 6 5 2 2 33 Gun 18 | 6 4 2 2 4 Cannon . | . . . . . Launcher 30 | . 1 . . 29 Special . | . . . . . Kinetic 4 | . . . . 4 Thermal 11 | 3 4 2 2 . Explosive 30 | . 1 . . 29 Electromagnetic 3 | 3 . . . . Robot Hit Streak 10 | 2 4 . 1 10 Robot Miss Streak 3 | 1 1 2 3 3 Penetration Max . | . . . . . Secondary Targets . | . . . . . Shots Hit Robots 38 | 4 4 . 1 29 Core Hits 52 | 2 5 . . 45 Critical Kills . | . . . . . Critical Parts Destroyed . | . . . . . Critical Strikes 1 | . 1 . . . Burn 1 | . 1 . . . Melee Attacks 7 | . . . . 7 Impact . | . . . . . Slashing 7 | . . . . 7 Piercing . | . . . . . Sneak Attacks . | . . . . . Combat Hostiles . | . . . . . Follow-up Attacks . | . . . . . Damage Inflicted 1725 | 48 156 . 18 1503 Guns 158 | 48 38 . 13 59 Cannons . | . . . . . Explosions 1379 | . 102 . . 1277 Melee 167 | . . . . 167 Ramming 21 | . 16 . 5 . Kinetic 59 | . . . . 59 Thermal 63 | 12 38 . 13 . Explosive 1379 | . 102 . . 1277 Electromagnetic 36 | 36 . . . . Impact . | . . . . . Slashing 167 | . . . . 167 Piercing . | . . . . . Highest Corruption . | . . . . . Average Corruption . | . . . . . Corruption Purged . | . . . . . Corruption Blocked . | . . . . . Overload Shots . | . . . . . Overflow Damage 28 | . 1 . . 27 Projectiles . | . . . . . Explosions 28 | . 1 . . 27 Melee . | . . . . . Knockbacks . | . . . . . Impact . | . . . . . Kinetic . | . . . . . Secondary . | . . . . . Self-Inflicted Damage 246 | . 8 . 2 236 Shots 9 | . . . . 9 Rammed 6 | . 5 . 1 . Targets Rammed 6 | . 5 . 1 . Kicked . | . . . . . Crushed . | . . . . . Highest Temperature 102 | 102 28 20 8 11 Average Temperature 20 | 62 14 12 5 4 Received Heat Transfer 408 | 12 . . 90 306 Siege Activations . | . . . . . Robots Corrupted . | . . . . . Combat Hostiles . | . . . . . Parts Fried . | . . . . . Impact Corruptions . | . . . . . Robots Melted . | . . . . . Combat Hostiles . | . . . . . Parts Melted . | . . . . . Heat Transferred 259 | 37 185 . 37 . Parts Sabotaged . | . . . . . Parts Stolen . | . . . . . Parts Stripped . | . . . . . Power Chain Reactions . | . . . . . Alert | -11 -10 -10 -9 -8 ------- Run | Yrd Mat Min Mat Mat Peak Influence 344 | 20 114 44 77 344 Initial 44 | . 13 44 16 19 Average 65 | 1 92 44 45 83 Maximum Alert Level 1 | . . . . 1 Low Security (%) 94 | 100 100 100 100 84 Level 1 5 | . . . . 15 Level 2 . | . . . . . Level 3 . | . . . . . Level 4 . | . . . . . Level 5 . | . . . . . High Security . | . . . . . Max Security . | . . . . . Squads Dispatched 1 | . . . . 1 Investigation . | . . . . . Extermination . | . . . . . Reinforcement 1 | . . . . 1 Assault . | . . . . . Garrison . | . . . . . Intercept . | . . . . . Searches Triggered . | . . . . . Construction Impeded . | . . . . . Haulers Reinforced . | . . . . . Active Scanning Responses . | . . . . . Cargo Convoy Interrupts . | . . . . . Stealth | -11 -10 -10 -9 -8 --------- Run | Yrd Mat Min Mat Mat Distress Signals 4 | . . . 1 3 Communications Jammed . | . . . . . Distress Signals . | . . . . . Times Spotted 33 | 1 4 . 9 19 Peak Tracking Total 8 | 1 3 . 8 7 Tactical Retreats 1 | . . . . 1 Traps | -11 -10 -10 -9 -8 ------- Run | Yrd Mat Min Mat Mat Traps Triggered 2 | . . . . 2 Indirectly . | . . . . . Trap Hack Attempts . | . . . . . Triggered . | . . . . . Disarmed . | . . . . . Reprogrammed . | . . . . . Reused . | . . . . . Traps Extracted . | . . . . . Installed . | . . . . . Triggered . | . . . . . Machines | -11 -10 -10 -9 -8 ---------- Run | Yrd Mat Min Mat Mat Machines Disabled 2 | . . . . 2 Max in Single Turn 1 | . . . . 1 Machines Repaired . | . . . . . Machines Dismantled . | . . . . . Machines Sabotaged . | . . . . . Overloaded Fab Kills . | . . . . . Hacking | -11 -10 -10 -9 -8 --------- Run | Yrd Mat Min Mat Mat Machines Accessed 3 | . 1 . 2 . Terminals 3 | . 1 . 2 . Fabricators . | . . . . . Repair Stations . | . . . . . Recycling Units . | . . . . . Scanalyzers . | . . . . . Garrison Access . | . . . . . Total Hacks 3 | . 1 . 2 . Successful 3 | . 1 . 2 . Failed . | . . . . . Catastrophic . | . . . . . Database Lockouts . | . . . . . Manual . | . . . . . Terminals 3 | . 1 . 2 . Fabricators . | . . . . . Repair Stations . | . . . . . Recycling Units . | . . . . . Scanalyzers . | . . . . . Garrison Access . | . . . . . Terminal Hacks 3 | . 1 . 2 . Record 2 | . 1 . 1 . Alert Level 1 | . . . 1 . Fabricator Hacks . | . . . . . Repair Station Hacks . | . . . . . Recycling Unit Hacks . | . . . . . Scanalyzer . | . . . . . Garrison Access Hacks . | . . . . . Unauthorized Hacks . | . . . . . Terminals . | . . . . . Fabricators . | . . . . . Repair Stations . | . . . . . Recycling Units . | . . . . . Scanalyzers . | . . . . . Garrison Access . | . . . . . Data Cores Recovered . | . . . . . Used . | . . . . . Hacking Detections 2 | . . . 2 . Full Trace Events . | . . . . . Feedback Events . | . . . . . Feedback Blocked . | . . . . . Robot Schematics Acquired . | . . . . . Robots Built . | . . . . . Authchips . | . . . . . Time . | . . . . . Total Robot Build Rating . | . . . . . Part Schematics Acquired . | . . . . . Parts Built . | . . . . . Authchips . | . . . . . Time . | . . . . . Total Part Build Rating . | . . . . . Parts Repaired . | . . . . . Time . | . . . . . Parts Recycled . | . . . . . Recycled Matter . | . . . . . Retrieved Matter . | . . . . . Retrieved Components . | . . . . . Parts Scanalyzed . | . . . . . Part Schematics Acquired . | . . . . . Parts Damaged . | . . . . . Bothacking | -11 -10 -10 -9 -8 ------------ Run | Yrd Mat Min Mat Mat Used RIF Installer . | . . . . . Robots Hacked . | . . . . . Non-combat . | . . . . . Combat . | . . . . . Robot Hacks Applied . | . . . . . Relay Couplers Released . | . . . . . Fabnet Peak Effective % . | . . . . . Robots Rewired . | . . . . . Allies Hacked . | . . . . . Hacks Repelled . | . . . . . Allies | -11 -10 -10 -9 -8 -------- Run | Yrd Mat Min Mat Mat Total Allies . | . . . . . Largest Group . | . . . . . Highest-Rated Group . | . . . . . Highest-Rated Ally . | . . . . . Total Orders . | . . . . . Ally Attacks . | . . . . . Total Damage . | . . . . . Kills . | . . . . . Allies Corrupted . | . . . . . Allies Melted . | . . . . . Intel | -11 -10 -10 -9 -8 ------- Run | Yrd Mat Min Mat Mat Robot Analysis Total . | . . . . . Derelict Logs Recovered . | . . . . . Drone Launches . | . . . . . Drone Recoveries . | . . . . . Exploration | -11 -10 -10 -9 -8 ------------- Run | Yrd Mat Min Mat Mat Turns Passed 1430 | 70 252 250 313 545 Spaces Moved 1502 | 74 288 308 363 469 Core 68 | 25 . . . 43 Treads 7 | . . . . 7 Legs . | . . . . . Wheels 927 | 49 288 308 282 . Hover . | . . . . . Flight 500 | . . . 81 419 Fastest Speed 29 | 50 80 80 37 29 Average Speed 81 | 69 80 80 80 87 Slowest Speed 200 | 80 80 80 117 200 Overloaded Moves . | . . . . . Propulsion Burnouts . | . . . . . Robots Hopped . | . . . . . Cave-ins Triggered . | . . . . . Exploration Rate (%) 32 | 5 43 52 27 35 Regions Visited 4 Branch Regions 1 Pre-discovered Areas 1 | . . 1 . . Known Exits Taken . | . . . . . Unknown Exits Taken 4 | 1 1 1 1 . Scrap Searched . | . . . . . Spaces Dug . | . . . . . Terrain Destroyed 179 | . 9 . . 170 Melee . | . . . . . Projectile . | . . . . . AOE 179 | . 9 . . 170 Terrain Rammed . | . . . . . Walls Destroyed . | . . . . . Machines Disabled . | . . . . . Actions | -11 -10 -10 -9 -8 --------- Run | Yrd Mat Min Mat Mat Total 1647 | 86 304 309 382 566 Wait 7 | . . . . 7 Move 1498 | 73 287 307 362 469 Hop . | . . . . . Pick Up 36 | 5 6 . 5 20 Fast Attach . | . . . . . Attach 26 | 5 . . 4 17 Detach 1 | . . . . 1 Swap 11 | . 1 . 4 6 Drop 13 | . 1 . 4 8 Fire 42 | 3 4 2 2 31 Melee 7 | . . . . 7 Ram 6 | . 5 . 1 . Kick . | . . . . . Crush . | . . . . . Escape Stasis . | . . . . . Rewire . | . . . . . Trap . | . . . . . Miscellaneous . | . . . . . Route ------- -11/Scrapyard -10/Materials (discovered 2 exits: [*Min x2]) -10/Mines -9/Materials -8/Materials History --------- Turn | Location | Event 2 | -11/Scrapyard | Met Revision 17 54 | -11/Scrapyard | Discovered new exit (range 8) 71 | -11/Scrapyard | Entered Materials 290 | -10/Materials | Discovered new exit (range 10) 295 | -10/Materials | Discovered new exit (range 16) 312 | -10/Materials | Build established: Mutant 323 | -10/Materials | Entered Mines 324 | -10/Mines | Learned location of Storage (-8) 379 | -10/Mines | Found a hidden stash of uninstalled traps 560 | -10/Mines | Discovered new exit (range 12) 573 | -10/Mines | Entered Materials 573 | -9/Materials | Evolved 2 slots: Propulsion x2 875 | -9/Materials | Discovered new exit (range 7) 886 | -9/Materials | Entered another Materials area 886 | -8/Materials | Evolved 2 slots: Power x1, Utility x1 903 | -8/Materials | Lost 3 parts (1n2w) 1375 | -8/Materials | Core integrity fell below 50% 1383 | -8/Materials | Lost 4 parts (1p2n1u) 1392 | -8/Materials | Core integrity fell below 20% 1431 | -8/Materials | Destroyed by Y-45 Defender with Beam Rifle Last Messages --------------- Destroyed Surge Thruster. W-25 Informer destroyed. VTOL Module destroyed. Destroyed VTOL Module. The unstable cave ceiling collapses. Acquired 2 matter. Terminal disabled. Y-45 Defender destroyed. Critical hit (Burn: +37). Destroyed Imp. Hover Unit. The unstable cave ceiling collapses. Y-45 Defender destroyed. The unstable cave ceiling collapses. W-25 Informer destroyed. Imp. Weapon Shielding destroyed. Mni. Grenade Launcher destroyed. The unstable cave ceiling collapses. Acquired Arm. Treads. Acquired Autogun. Y-45 Defender destroyed. Map ----- +----------------------------------------------------+ | ????????????????????????????? | | #####???????????????????????? | | #???????????????????????? | | #???????????????????????? | | #???????????????????????? | | """ #???????????????????????? | | """ #???????????????????????? | | """ #???????????????????????? | | #???????????????????????? | | """ #???????????????????????? | | """ #???????????????????????? | | """ #???????????????????????? | | #???????????????????????? | | ########????????????????????? | | ## #######??????????????? | | # ???????????????? | | # ????????????????? | | ?????????????????? | | # ##??????????###????? | | # =% #???????#### ###### | | # #######?# # | | # # ### # | | = # # | | #[ # | | +%[ !! # | | % #Y ![@ # | | ## = ## # ![ # | | # # # # ## # | | # ############ | | ## """ ###??????????? | | """ ###????????????? | | # """ #??????????????? | | # #??????????????? | | ####### #??????????????? | | ??????########??????????????? | | ????????????????????????????? | | ????????????????????????????? | | ????????????????????????????? | | ????????????????????????????? | | ????????????????????????????? | | ????????????????????????????? | | ????????????????????????????? | | ????????????????????????????? | | ????????????????????????????? | | ????????????????????????????? | | ?????????????????????????? | | ????????????????????????? | | ????????????????????????????? | | ????????????????????????????? | | ????????????????????????????? | +----------------------------------------------------+ Best States ------------- Heat Dissipation 31 Coolant Potential 50 Energy Generation 23 Energy Capacity 470 Matter Stores 300 Matter Capacity 300 Sight Range 16 Terrain Scan Density 10 Power Shielding 66 Weapon Shielding 66 Evasion (%) 64 Melee Accuracy 5 Recoil Reduction 1 Item Schematics ----------------- None Robot Schematics ------------------ None Fabricated ------------ Nothing Alien Tech Used ----------------- None Achievements -------------- Loot Pinata Oops Challenges ------------ None Game ------ Seed PlatingCooledPendant Manual? 0 Play Time 00:25:58 Cumulative 2.6 hours Start 2024.03.30 @ 19:49:10 End 2024.04.01 @ 10:07:21 Sessions 1 Manual Loads 0 Difficulty Rogue Special Mode None Game No. 3 Rogue 3 Adventurer 0 Explorer 0 Win Type - Total 0 Types 0/0/0/0/0/0/0/0/0 Lore% 2 Gallery% 9 Achievement% 7 Wizard Run 0 Options --------- Layout 1 ASCII 0 Keyboard 0 Movement Arrows Keybinds 0 Fullscreen 1 Font 24/Smallcaps Map View 50x35 Zoom Use 0% Tactical HUD 0 Map Filters NONE Filters NONE Steam 1 RUN: 2d65e4fb-87c9-4966-9ce6-d3ac1ed25aba